fUST/lending_fUST_20240730
["ID","MTS","AMOUNT","RATE_DAILY","PERIOD"]
[333607214,1722276659419,-500.0,0.00014246,2]
[333607215,1722276659428,-500.0,0.00014246,2]
[333607216,1722276659438,-500.0,0.00014246,2]
[333607217,1722276659447,-500.0,0.00014246,2]
[333607218,1722276659456,-500.0,0.00014246,2]
[333607219,1722276659467,-500.0,0.00014246,2]
[333607220,1722276659477,-760.89,0.00014246,2]
[333607221,1722276659487,-391.39822416,0.00014246,2]
[333607222,1722276659496,-500.0,0.00014246,2]
[333607223,1722276659505,-1107.31,0.00014246,2]
[333607224,1722276659514,-1018.56,0.00014246,2]
[333607225,1722276659523,-500.0,0.00014246,2]
[333607226,1722276659533,-1731.92,0.00014246,2]
[333607227,1722276659543,-500.0,0.00014246,2]
[333607228,1722276659552,-500.0,0.00014246,2]
[333607229,1722276659562,-500.0,0.00014246,2]
[333607230,1722276659571,-551.77,0.00014246,2]
[333607231,1722276659580,-500.0,0.00014246,2]
[333607232,1722276659589,-502.74,0.00014246,2]
[333607233,1722276659599,-500.0,0.00014246,2]
[333607234,1722276659610,-601.95,0.00014246,2]
[333607235,1722276659619,-500.0,0.00014246,2]
[333607236,1722276659629,-500.0,0.00014246,2]
[333607237,1722276659638,-500.0,0.00014246,2]
[333607238,1722276659647,-500.4,0.00014246,2]
[333607239,1722276659657,-500.0,0.00014246,2]
[333607240,1722276659667,-500.0,0.00014246,2]
[333607241,1722276659677,-500.0,0.00014246,2]
[333607242,1722276659686,-1427.91,0.00014246,2]
[333607243,1722276659695,-500.0,0.00014246,2]
[333607244,1722276659705,-638.03,0.00014246,2]
[333607245,1722276659716,-625.63,0.00014246,2]
[333607246,1722276659724,-500.0,0.00014246,2]
[333607247,1722276659734,-500.0,0.00014246,2]
[333607248,1722276659743,-500.0,0.00014246,2]
[333607249,1722276659756,-2995.86,0.00014246,2]
[333607250,1722276659767,-896.34,0.00014246,2]
[333607251,1722276659777,-500.0,0.00014246,2]
[333607252,1722276659787,-500.0,0.00014246,2]
[333607253,1722276659796,-6574.82,0.00014246,2]
[333607254,1722276659805,-7747.29,0.00014246,2]
[333607255,1722276659815,-500.0,0.00014246,2]
[333607256,1722276659824,-500.0,0.00014246,2]
[333607257,1722276659835,-500.0,0.00014246,2]
[333607258,1722276659844,-500.0,0.00014246,2]
[333607259,1722276659854,-1440.57,0.00014246,2]
[333607260,1722276659863,-500.0,0.00014246,2]
[333607261,1722276659872,-504.82750399,0.00014246,2]
[333607262,1722276659882,-500.0,0.00014246,2]
[333607263,1722276659892,-500.0,0.00014246,2]
[333607264,1722276659901,-500.0,0.00014246,2]
[333607265,1722276659910,-1462.84,0.00014246,2]
[333607266,1722276659919,-500.0,0.00014246,2]
[333607267,1722276659928,-500.0,0.00014246,2]
[333607268,1722276659938,-500.0,0.00014246,2]
[333607269,1722276659948,-695.47,0.00014246,2]
[333607270,1722276659960,-1008.8,0.00014246,2]
[333607271,1722276659971,-302.94005181,0.00014246,2]
[333607272,1722276659980,-500.0,0.00014246,2]
[333607273,1722276659989,-500.0,0.00014246,2]
[333607274,1722276660002,-500.0,0.00014246,2]
[333607275,1722276660011,-500.0,0.00014246,2]
[333607276,1722276660021,-758.42,0.00014246,2]
[333607277,1722276660030,-481.54945473,0.00014246,2]
[333607278,1722276660040,-500.0,0.00014246,2]
[333607279,1722276660050,-1338.54,0.00014246,2]
[333607280,1722276660059,-2472.95,0.00014246,2]
[333607281,1722276660069,-500.0,0.00014246,2]
[333607282,1722276660079,-500.0,0.00014246,2]
[333607283,1722276660088,-855.3,0.00014246,2]
[333607284,1722276660098,-500.0,0.00014246,2]
[333607285,1722276660108,-500.0,0.00014246,2]
[333607286,1722276660118,-500.0,0.00014246,2]
[333607287,1722276660127,-500.0,0.00014246,2]
[333607288,1722276660137,-500.0,0.00014246,2]
[333607289,1722276660147,-500.0,0.00014246,2]
[333607290,1722276660157,-1539.07,0.00014246,2]
[333607291,1722276660168,-1462.13,0.00014246,2]
[333607292,1722276660177,-1607.79,0.00014246,2]
[333607293,1722276660187,-500.0,0.00014246,2]
[333607294,1722276660197,-1193.36,0.00014246,2]
[333607295,1722276660207,-5135.3,0.00014246,2]
[333607296,1722276660218,-500.0,0.00014246,2]
[333607297,1722276660228,-500.0,0.00014246,2]
[333607298,1722276660237,-500.0,0.00014246,2]
[333607299,1722276660247,-1035.36,0.00014246,2]
[333607300,1722276660257,-500.0,0.00014246,2]
[333607301,1722276660268,-500.0,0.00014246,2]
[333607302,1722276660279,-500.0,0.00014246,2]
[333607303,1722276660288,-500.0,0.00014246,2]
[333607304,1722276660298,-943.46,0.00014246,2]
[333607305,1722276660309,-1487.43,0.00014246,2]
[333607306,1722276660318,-500.0,0.00014246,2]
[333607307,1722276660327,-1580.18,0.00014246,2]
[333607308,1722276660336,-629.1,0.00014246,2]
[333607309,1722276660348,-500.0,0.00014246,2]
[333607310,1722276660359,-500.0,0.00014246,2]
[333607311,1722276660369,-500.0,0.00014246,2]
[333607312,1722276660378,-500.0,0.00014246,2]
[333607313,1722276660388,-500.0,0.00014246,2]
[333607314,1722276660397,-1099.29,0.00014246,2]
[333607315,1722276660407,-500.0,0.00014246,2]
[333607316,1722276660417,-500.0,0.00014246,2]
[333607317,1722276660427,-500.0,0.00014246,2]
[333607318,1722276660436,-500.0,0.00014246,2]
[333607319,1722276660446,-500.0,0.00014246,2]
[333607320,1722276660455,-500.0,0.00014246,2]
[333607321,1722276660467,-3959.92,0.00014246,2]
[333607322,1722276660476,-645.83,0.00014246,2]
[333607323,1722276660485,-849.45,0.00014246,2]
[333607324,1722276660495,-2954.63,0.00014246,2]
[333607325,1722276660505,-801.38,0.00014246,2]
[333607326,1722276660515,-672.49,0.00014246,2]
[333607327,1722276660524,-500.0,0.00014246,2]
[333607328,1722276660533,-1954.17,0.00014246,2]
[333607329,1722276660543,-212.56,0.00014246,2]
[333607330,1722276660553,-446.36210049,0.00014246,2]
[333607333,1722276900182,220.22655659,9.999e-05,2]
[333607336,1722277067784,156.44936091,9.999e-05,2]
[333607337,1722277123086,600.34409866,9.999e-05,2]
[333607338,1722277150565,156.44936091,9.999e-05,2]
[333607339,1722277189328,188.10567749,9.999e-05,2]
[333607340,1722277192520,237.03287832,9.999e-05,2]
[333607341,1722277208956,533.46933228,9.999e-05,2]
[333607342,1722277236197,154.97421143,9.999e-05,2]
[333607343,1722277292490,323.87670209,9.999e-05,2]
[333607344,1722277302762,367.92074618,9.999e-05,2]
[333607345,1722277412055,227.46441562,9.999e-05,2]
[333607346,1722277507506,154.71377951,9.999e-05,2]
[333607347,1722277530831,154.698338,0.0001,2]
[333607348,1722277542132,941.66960481,9.999e-05,2]
[333607351,1722277579096,600.34409866,9.999e-05,2]
[333607352,1722277584654,531.74310439,9.999e-05,2]
[333607353,1722277591683,1629.26928721,0.0001,2]
[333607354,1722277616051,518.58434175,9.999e-05,2]
[333607358,1722277639309,779.13201586,9.999e-05,2]
[333607359,1722277645466,156.71074716,9.999e-05,2]
[333607360,1722277653970,248.87416602,9.999e-05,2]
[333607361,1722277655104,313.07330924,9.999e-05,2]
[333607363,1722277671667,531.74310439,9.999e-05,2]
[333607365,1722277677293,156.62454437,9.999e-05,2]
[333607368,1722277681740,240.55889109,9.999e-05,2]
[333607369,1722277687019,209.7259495,9.999e-05,2]
[333607370,1722277697093,337.6370591,9.999e-05,2]
[333607372,1722277729751,567.99228217,9.999e-05,2]
[333607373,1722277754333,778.48464131,9.999e-05,2]
[333607374,1722277754424,350.77118343,9.999e-05,2]
[333607375,1722277756106,600.34409866,9.999e-05,2]
[333607376,1722277770468,156.63106331,9.999e-05,2]
[333607377,1722277774193,674.29057355,9.999e-05,2]
[333607378,1722277775313,156.54637222,9.999e-05,2]
[333607379,1722277775907,339.45593599,9.999e-05,2]
[333607380,1722277776425,196.30125481,9.999e-05,2]
[333607498,1722277831985,-300.0,0.00012092,2]
[333607500,1722277831996,-176.14397417,0.00012093,2]
[333607507,1722277832104,-462.228,0.00012093,2]
[333607508,1722277832116,-24261.62802583,0.00012093,2]
[333607509,1722277832125,-1629.26928721,0.0001212,2]
[333607510,1722277832136,-195.948588,0.00012184,2]
[333607511,1722277832145,-195.948588,0.00012819,2]
[333607512,1722277832154,-200.0,0.00012986,2]
[333607513,1722277832163,-420.0,0.00013301,2]
[333607514,1722277832173,-206.69780192,0.00013498,2]
[333607515,1722277832182,-3257.53747671,0.00013498,2]
[333607516,1722277832191,-2149.0977033,0.00013598,2]
[333607517,1722277832201,-2483.39558172,0.00013598,2]
[333607518,1722277832211,-200.0,0.00013598,2]
[333607519,1722277832220,-150.112233,0.000136,2]
[333607520,1722277832230,-324.36814724,0.00013655,2]
[333607521,1722277832239,-295304.260758,0.00013688,2]
[333607522,1722277832250,-500.0,0.00013698,2]
[333607523,1722277832259,-1243.07206881,0.00013698,2]
[333607525,1722277832269,-456.9726472,0.00013698,2]
[333607527,1722277832278,-500.0,0.00013698,2]
[333607528,1722277832287,-460.91765581,0.00013698,2]
[333607530,1722277832297,-500.0,0.00013698,2]
[333607532,1722277832306,-381.59356109,0.00013698,2]
[333607534,1722277832316,-500.0,0.00013698,2]
[333607536,1722277832326,-500.0,0.00013698,2]
[333607538,1722277832335,-500.0,0.00013698,2]
[333607540,1722277832345,-500.0,0.00013698,2]
[333607542,1722277832354,-500.0,0.00013698,2]
[333607544,1722277832364,-500.0,0.00013698,2]
[333607553,1722277832454,-387.34468778,0.00013698,2]
[333607555,1722277832466,-280.72394813,0.00013698,2]
[333607557,1722277832476,-500.0,0.00013698,2]
[333607559,1722277832486,-262.75656386,0.00013698,2]
[333607561,1722277832496,-500.0,0.00013698,2]
[333607563,1722277832506,-500.0,0.00013698,2]
[333607565,1722277832515,-500.0,0.00013698,2]
[333607566,1722277832525,-500.0,0.00013698,2]
[333607568,1722277832535,-500.0,0.00013698,2]
[333607570,1722277832546,-500.0,0.00013698,2]
[333607572,1722277832556,-500.0,0.00013698,2]
[333607573,1722277832566,-500.0,0.00013698,2]
[333607574,1722277832575,-500.0,0.00013698,2]
[333607575,1722277832584,-355.43460257,0.00013698,2]
[333607576,1722277832594,-375.34868669,0.00013698,2]
[333607577,1722277832605,-500.0,0.00013698,2]
[333607578,1722277832614,-458.0,0.00013698,2]
[333607579,1722277832624,-511.7893052,0.00013698,2]
[333607580,1722277832633,-500.0,0.00013698,2]
[333607581,1722277832643,-202.60199709,0.00013698,2]
[333607582,1722277832656,-500.0,0.00013698,2]
[333607583,1722277832666,-500.0,0.00013698,2]
[333607584,1722277832675,-500.0,0.00013698,2]
[333607585,1722277832684,-500.0,0.00013698,2]
[333607586,1722277832694,-500.0,0.00013698,2]
[333607587,1722277832705,-535.39781634,0.00013698,2]
[333607588,1722277832714,-500.0,0.00013698,2]
[333607589,1722277832724,-373.41010582,0.00013698,2]
[333607590,1722277832735,-500.0,0.00013698,2]
[333607591,1722277832745,-286.75239681,0.00013698,2]
[333607592,1722277832754,-500.0,0.00013698,2]
[333607593,1722277832763,-500.0,0.00013698,2]
[333607594,1722277832773,-500.0,0.00013698,2]
[333607595,1722277832782,-500.0,0.00013698,2]
[333607596,1722277832791,-500.0,0.00013698,2]
[333607597,1722277832800,-500.0,0.00013698,2]
[333607598,1722277832810,-500.0,0.00013698,2]
[333607599,1722277832819,-500.0,0.00013698,2]
[333607600,1722277832830,-500.0,0.00013698,2]
[333607601,1722277832840,-500.0,0.00013698,2]
[333607602,1722277832850,-500.0,0.00013698,2]
[333607603,1722277832859,-411.00797421,0.00013698,2]
[333607604,1722277832869,-500.0,0.00013698,2]
[333607605,1722277832878,-500.0,0.00013698,2]
[333607606,1722277832888,-500.0,0.00013698,2]
[333607607,1722277832899,-500.0,0.00013698,2]
[333607608,1722277832908,-500.0,0.00013698,2]
[333607609,1722277832917,-500.0,0.00013698,2]
[333607610,1722277832926,-500.0,0.00013698,2]
[333607611,1722277832936,-500.0,0.00013698,2]
[333607612,1722277832946,-500.0,0.00013698,2]
[333607613,1722277832956,-500.0,0.00013698,2]
[333607614,1722277832966,-500.0,0.00013698,2]
[333607615,1722277832976,-500.0,0.00013698,2]
[333607616,1722277832986,-507.93967045,0.00013698,2]
[333607617,1722277832995,-512.62054526,0.00013698,2]
[333607618,1722277833005,-500.0,0.00013698,2]
[333607619,1722277833015,-583.17618753,0.00013698,2]
[333607620,1722277833024,-500.0,0.00013698,2]
[333607621,1722277833035,-613.97925826,0.00013698,2]
[333607622,1722277833045,-325.36337819,0.00013698,2]
[333607623,1722277833055,-501.98285701,0.00013698,2]
[333607624,1722277833065,-500.0,0.00013698,2]
[333607625,1722277833075,-500.0,0.00013698,2]
[333607626,1722277833085,-478.3836698,0.00013698,2]
[333607627,1722277833095,-500.0,0.00013698,2]
[333607628,1722277833107,-500.0,0.00013698,2]
[333607629,1722277833116,-515.02745838,0.00013698,2]
[333607630,1722277833125,-500.0,0.00013698,2]
[333607631,1722277833136,-554.22845092,0.00013698,2]
[333607632,1722277833146,-513.09903487,0.00013698,2]
[333607633,1722277833155,-500.0,0.00013698,2]
[333607634,1722277833164,-500.0,0.00013698,2]
[333607635,1722277833174,-500.0,0.00013698,2]
[333607636,1722277833183,-500.0,0.00013698,2]
[333607637,1722277833192,-500.0,0.00013698,2]
[333607638,1722277833202,-500.0,0.00013698,2]
[333607639,1722277833212,-282.81891935,0.00013698,2]
[333607640,1722277833221,-150.0,0.00013698,2]
[333607641,1722277833231,-500.0,0.00013698,2]
[333607642,1722277833241,-215.86503214,0.00013698,2]
[333607643,1722277833250,-500.0,0.00013698,2]
[333607644,1722277833260,-500.0,0.00013698,2]
[333607645,1722277833270,-500.0,0.00013698,2]
[333607646,1722277833279,-500.0,0.00013698,2]
[333607647,1722277833288,-500.0,0.00013698,2]
[333607648,1722277833298,-500.0,0.00013698,2]
[333607649,1722277833307,-509.3398098,0.00013698,2]
[333607650,1722277833316,-500.0,0.00013698,2]
[333607651,1722277833327,-500.0,0.00013698,2]
[333607652,1722277833336,-500.0,0.00013698,2]
[333607653,1722277833346,-500.0,0.00013698,2]
[333607654,1722277833355,-500.0,0.00013698,2]
[333607655,1722277833365,-500.0,0.00013698,2]
[333607656,1722277833374,-500.0,0.00013698,2]
[333607657,1722277833384,-583.87173242,0.00013698,2]
[333607658,1722277833393,-500.0,0.00013698,2]
[333607659,1722277833403,-500.0,0.00013698,2]
[333607660,1722277833412,-507.16405368,0.00013698,2]
[333607661,1722277833422,-500.0,0.00013698,2]
[333607662,1722277833432,-500.0,0.00013698,2]
[333607663,1722277833442,-500.0,0.00013698,2]
[333607664,1722277833453,-500.0,0.00013698,2]
[333607665,1722277833462,-500.0,0.00013698,2]
[333607666,1722277833472,-514.13655245,0.00013698,2]
[333607667,1722277833483,-500.0,0.00013698,2]
[333607668,1722277833493,-500.0,0.00013698,2]
[333607669,1722277833503,-500.0,0.00013698,2]
[333607670,1722277833513,-477.34439625,0.00013698,2]
[333607671,1722277833524,-585.33335433,0.00013698,2]
[333607672,1722277833534,-500.0,0.00013698,2]
[333607673,1722277833545,-500.0,0.00013698,2]
[333607674,1722277833555,-500.0,0.00013698,2]
[333607675,1722277833565,-502.98248537,0.00013698,2]
[333607676,1722277833574,-500.0,0.00013698,2]
[333607677,1722277833585,-500.0,0.00013698,2]
[333607678,1722277833595,-500.0,0.00013698,2]
[333607679,1722277833604,-500.0,0.00013698,2]
[333607680,1722277833614,-500.0,0.00013698,2]
[333607681,1722277833623,-500.0,0.00013698,2]
[333607682,1722277833633,-500.0,0.00013698,2]
[333607683,1722277833644,-500.0,0.00013698,2]
[333607684,1722277833655,-500.0,0.00013698,2]
[333607685,1722277833668,-500.0,0.00013698,2]
[333607686,1722277833679,-500.0,0.00013698,2]
[333607687,1722277833688,-500.0,0.00013698,2]
[333607688,1722277833699,-500.0,0.00013698,2]
[333607689,1722277833711,-500.0,0.00013698,2]
[333607690,1722277833794,-500.0,0.00013698,2]
[333607691,1722277833804,-500.0,0.00013698,2]
[333607692,1722277833813,-782.59,0.00013698,2]
[333607693,1722277833823,-500.0,0.00013698,2]
[333607694,1722277833832,-500.0,0.00013698,2]
[333607695,1722277833842,-500.0,0.00013698,2]
[333607696,1722277833852,-500.0,0.00013698,2]
[333607697,1722277833862,-554.4036553,0.00013698,2]
[333607698,1722277833872,-500.0,0.00013698,2]
[333607699,1722277833881,-327.07571737,0.00013698,2]
[333607700,1722277833891,-500.0,0.00013698,2]
[333607701,1722277833901,-332.22128548,0.00013698,2]
[333607702,1722277833911,-500.0,0.00013698,2]
[333607703,1722277833920,-500.0,0.00013698,2]
[333607704,1722277833930,-500.0,0.00013698,2]
[333607705,1722277833940,-500.0,0.00013698,2]
[333607706,1722277833950,-507.3387264,0.00013698,2]
[333607707,1722277833960,-500.0,0.00013698,2]
[333607708,1722277833969,-500.0,0.00013698,2]
[333607709,1722277833979,-501.05158394,0.00013698,2]
[333607710,1722277833988,-707.45,0.00013698,2]
[333607711,1722277833997,-500.0,0.00013698,2]
[333607712,1722277834007,-500.0,0.00013698,2]
[333607713,1722277834017,-500.0,0.00013698,2]
[333607714,1722277834027,-500.0,0.00013698,2]
[333607715,1722277834037,-325.27060358,0.00013698,2]
[333607716,1722277834047,-500.0,0.00013698,2]
[333607717,1722277834056,-500.0,0.00013698,2]
[333607718,1722277834066,-500.0,0.00013698,2]
[333607719,1722277834076,-504.47290326,0.00013698,2]
[333607720,1722277834085,-504.39814406,0.00013698,2]
[333607721,1722277834095,-500.0,0.00013698,2]
[333607722,1722277834105,-500.0,0.00013698,2]
[333607723,1722277834115,-500.0,0.00013698,2]
[333607724,1722277834125,-500.0,0.00013698,2]
[333607725,1722277834134,-500.0,0.00013698,2]
[333607726,1722277834144,-500.0,0.00013698,2]
[333607727,1722277834154,-500.0,0.00013698,2]
[333607728,1722277834163,-500.0,0.00013698,2]
[333607729,1722277834173,-500.0,0.00013698,2]
[333607730,1722277834182,-500.0,0.00013698,2]
[333607731,1722277834192,-500.0,0.00013698,2]
[333607732,1722277834201,-500.0,0.00013698,2]
[333607733,1722277834212,-403.60933229,0.00013698,2]
[333607734,1722277834221,-578.33554279,0.00013698,2]
[333607735,1722277834230,-500.0,0.00013698,2]
[333607736,1722277834240,-853.98,0.00013698,2]
[333607737,1722277834250,-589.09,0.00013698,2]
[333607738,1722277834259,-500.0,0.00013698,2]
[333607739,1722277834269,-500.0,0.00013698,2]
[333607740,1722277834278,-500.0,0.00013698,2]
[333607741,1722277834287,-500.0,0.00013698,2]
[333607742,1722277834296,-540.8355741,0.00013698,2]
[333607743,1722277834306,-500.0,0.00013698,2]
[333607744,1722277834315,-500.0,0.00013698,2]
[333607745,1722277834324,-500.0,0.00013698,2]
[333607746,1722277834334,-500.0,0.00013698,2]
[333607747,1722277834343,-500.0,0.00013698,2]
[333607748,1722277834353,-500.0,0.00013698,2]
[333607749,1722277834371,-500.0,0.00013698,2]
[333607750,1722277834388,-500.0,0.00013698,2]
[333607751,1722277834405,-500.0,0.00013698,2]
[333607752,1722277834421,-500.0,0.00013698,2]
[333607753,1722277834440,-160.13921271,0.00013698,2]
[333607754,1722277834461,-525.65409885,0.00013698,2]
[333607755,1722277834481,-503.89869016,0.00013698,2]
[333607756,1722277834498,-500.0,0.00013698,2]
[333607757,1722277834515,-431.55066209,0.00013698,2]
[333607758,1722277834528,-1163.46,0.00013698,2]
[333607759,1722277834542,-500.0,0.00013698,2]
[333607760,1722277834560,-500.0,0.00013698,2]
[333607761,1722277834577,-505.61587435,0.00013698,2]
[333607762,1722277834593,-503.52190112,0.00013698,2]
[333607763,1722277834604,-500.0,0.00013698,2]
[333607764,1722277834621,-500.0,0.00013698,2]
[333607765,1722277834635,-500.0,0.00013698,2]
[333607766,1722277834650,-503.26744277,0.00013698,2]
[333607767,1722277834670,-500.0,0.00013698,2]
[333607768,1722277834681,-500.0,0.00013698,2]
[333607769,1722277834696,-500.0,0.00013698,2]
[333607770,1722277834713,-500.0,0.00013698,2]
[333607771,1722277834729,-500.0,0.00013698,2]
[333607772,1722277834745,-497.83430396,0.00013698,2]
[333607773,1722277834763,-500.0,0.00013698,2]
[333607774,1722277834778,-506.48097375,0.00013698,2]
[333607775,1722277834793,-635.87,0.00013698,2]
[333607776,1722277834808,-500.0,0.00013698,2]
[333607777,1722277834823,-500.0,0.00013698,2]
[333607778,1722277834837,-711.61,0.00013698,2]
[333607779,1722277834851,-500.0,0.00013698,2]
[333607780,1722277834865,-502.97305532,0.00013698,2]
[333607781,1722277834879,-500.0,0.00013698,2]
[333607782,1722277834893,-500.0,0.00013698,2]
[333607783,1722277834906,-509.9511218,0.00013698,2]
[333607784,1722277834919,-502.79478643,0.00013698,2]
[333607785,1722277834933,-592.13,0.00013698,2]
[333607786,1722277834947,-500.0,0.00013698,2]
[333607787,1722277834962,-500.0,0.00013698,2]
[333607788,1722277834976,-944.47,0.00013698,2]
[333607789,1722277834990,-722.75,0.00013698,2]
[333607790,1722277835005,-835.16,0.00013698,2]
[333607791,1722277835020,-500.0,0.00013698,2]
[333607792,1722277835034,-1298.46,0.00013698,2]
[333607793,1722277835047,-500.0,0.00013698,2]
[333607794,1722277835061,-503.56894453,0.00013698,2]
[333607795,1722277835075,-500.0,0.00013698,2]
[333607796,1722277835089,-981.82,0.00013698,2]
[333607797,1722277835102,-500.0,0.00013698,2]
[333607798,1722277835116,-506.37706011,0.00013698,2]
[333607799,1722277835130,-500.0,0.00013698,2]
[333607800,1722277835143,-500.0,0.00013698,2]
[333607801,1722277835156,-500.0,0.00013698,2]
[333607802,1722277835170,-425.53509076,0.00013698,2]
[333607847,1722277837900,-416.42424309,0.00013698,5]
[333607852,1722277837934,-23198.99833414,0.00013698,5]
[333607854,1722277837943,-75.1036007,0.00013698,2]
[333607856,1722277837954,-501.84478942,0.00013698,2]
[333607858,1722277837965,-500.0,0.00013698,2]
[333607860,1722277837975,-500.0,0.00013698,2]
[333607863,1722277837985,-500.0,0.00013698,2]
[333607866,1722277838007,-500.86351952,0.00013698,2]
[333607868,1722277838018,-48.72746872,0.00013698,2]
[333607871,1722277838036,-451.27253128,0.00013698,2]
[333607873,1722277838046,-514.44735366,0.00013698,2]
[333607875,1722277838056,-500.0,0.00013698,2]
[333607877,1722277838066,-500.0,0.00013698,2]
[333607879,1722277838076,-500.0,0.00013698,2]
[333607881,1722277838086,-500.0,0.00013698,2]
[333607883,1722277838096,-500.0,0.00013698,2]
[333607885,1722277838106,-500.0,0.00013698,2]
[333607886,1722277838117,-500.0,0.00013698,2]
[333607888,1722277838127,-538.95614351,0.00013698,2]
[333607890,1722277838137,-500.0,0.00013698,2]
[333607892,1722277838147,-500.0,0.00013698,2]
[333607893,1722277838157,-500.0,0.00013698,2]
[333607895,1722277838167,-500.0,0.00013698,2]
[333607897,1722277838177,-500.0,0.00013698,2]
[333607899,1722277838187,-500.0,0.00013698,2]
[333607901,1722277838198,-500.0,0.00013698,2]
[333607903,1722277838208,-500.0,0.00013698,2]
[333607904,1722277838218,-548.69909098,0.00013698,2]
[333607906,1722277838228,-500.0,0.00013698,2]
[333607908,1722277838238,-500.0,0.00013698,2]
[333607910,1722277838249,-500.0,0.00013698,2]
[333607912,1722277838258,-500.0,0.00013698,2]
[333607914,1722277838268,-500.0,0.00013698,2]
[333607916,1722277838279,-500.0,0.00013698,2]
[333607918,1722277838289,-500.0,0.00013698,2]
[333607919,1722277838298,-500.0,0.00013698,2]
[333607921,1722277838308,-500.0,0.00013698,2]
[333607923,1722277838319,-563.046754,0.00013698,2]
[333607925,1722277838329,-500.0,0.00013698,2]
[333607927,1722277838339,-500.0,0.00013698,2]
[333607928,1722277838349,-500.0,0.00013698,2]
[333607930,1722277838359,-500.0,0.00013698,2]
[333607932,1722277838369,-500.0,0.00013698,2]
[333607934,1722277838379,-500.0,0.00013698,2]
[333607936,1722277838389,-500.0,0.00013698,2]
[333607938,1722277838399,-500.0,0.00013698,2]
[333607940,1722277838409,-500.0,0.00013698,2]
[333607941,1722277838419,-500.0,0.00013698,2]
[333607943,1722277838428,-500.0,0.00013698,2]
[333607957,1722277838565,-310.27597368,0.00013698,2]
[333607958,1722277838575,-500.0,0.00013698,2]
[333607960,1722277838585,-500.0,0.00013698,2]
[333607962,1722277838595,-571.77,0.00013698,2]
[333607964,1722277838605,-500.0,0.00013698,2]
[333607966,1722277838615,-500.0,0.00013698,2]
[333607968,1722277838624,-500.0,0.00013698,2]
[333607970,1722277838634,-500.0,0.00013698,2]
[333607972,1722277838643,-518.74004928,0.00013698,2]
[333607974,1722277838654,-500.0,0.00013698,2]
[333607976,1722277838666,-500.0,0.00013698,2]
[333607977,1722277838676,-339.16216401,0.00013698,2]
[333607979,1722277838686,-588.48,0.00013698,2]
[333607981,1722277838696,-500.0,0.00013698,2]
[333607983,1722277838706,-500.0,0.00013698,2]
[333607985,1722277838715,-500.0,0.00013698,2]
[333607987,1722277838725,-500.0,0.00013698,2]
[333607989,1722277838737,-723.95,0.00013698,2]
[333607991,1722277838747,-500.0,0.00013698,2]
[333607993,1722277838757,-1055.32,0.00013698,2]
[333607995,1722277838766,-500.0,0.00013698,2]
[333607996,1722277838776,-545.02767701,0.00013698,2]
[333607998,1722277838786,-500.0,0.00013698,2]
[333608000,1722277838796,-500.0,0.00013698,2]
[333608002,1722277838806,-500.0,0.00013698,2]
[333608004,1722277838816,-618.47992939,0.00013698,2]
[333608006,1722277838825,-500.0,0.00013698,2]